[Event "45th FIDE Olympiad 2024"]
[Site "Budapest"]
[Date "2024.09.19"]
[Round "8.38"]
[White "Abasov, Nijat"]
[Black "Lodici, Lorenzo"]
[Result "1/2-1/2"]
[ECO "E18"]
[WhiteElo "2626"]
[BlackElo "2556"]
[Annotator "ChessBase"]
[PlyCount "302"]
[EventDate "2024.09.05"]
[EventType "team-tourn"]
[EventCountry "HUN"]
[SourceTitle "playchess.com"]
[Source "ChessBase"]
[SourceQuality "1"]
[WhiteTeam "Azerbaijan"]
[BlackTeam "Italy"]
[WhiteTeamCountry "AZE"]
[BlackTeamCountry "ITA"]
[TimeControl "40/5400+30:1800+30"]

1. d4 {[%emt 0:00:02]} Nf6 {[%emt 0:00:06]} 2. Nf3 {[%emt 0:00:14]} b6 {[%emt 0:00:05]} 3. c4 {[%emt 0:00:05]} e6 {[%emt 0:02:12]} 4. g3 {[%emt 0:01:10]} Bb7 {[%emt 0:00:02]} 5. Bg2 {[%emt 0:00:08]} Be7 {[%emt 0:00:02]} 6. O-O {[%emt 0:00:17]} O-O {[%emt 0:00:04]} 7. Nc3 {[%emt 0:00:53]} Ne4 {[%emt 0:00:47]} 8. Bd2 {[%emt 0:00:18]} d6 {[%emt 0:00:12]} 9. Qc2 {[%emt 0:00:45]} Nxd2 {[%emt 0:01:07]} 10. Qxd2 {[%emt 0:00:07]} Nd7 {[%emt 0:03:51]} 11. e4 {[%emt 0:00:11]} a5 {[%emt 0:01:34]} 12. Rfe1 {[%emt 0:00:57]} g6 {[%emt 0:06:50]} 13. h4 {[%emt 0:00:54]} Bf6 {[%emt 0:02:15]} 14. Rad1 {[%emt 0:08:14]} Bg7 {[%emt 0:03:52]} 15. Qc2 {[%emt 0:00:39]} Qe7 {[%emt 0:03:29]} 16. b3 {[%emt 0:00:11]} h6 {[%emt 0:09:08]} 17. Rd2 {[%emt 0:13:25]} Rad8 {[%emt 0:04:03]} 18. a3 {[%emt 0:02:21]} g5 {[%emt 0:05:38]} 19. hxg5 {[%emt 0:04:08]} hxg5 {[%emt 0:00:23]} 20. Nh2 {[%emt 0:00:18]} c5 {[%emt 0:01:56]} 21. Ne2 {[%emt 0:02:00]} cxd4 {[%emt 0:14:51]} 22. Nxd4 {[%emt 0:00:37]} Ne5 {[%emt 0:00:04]} 23. a4 {[%emt 0:06:45]} g4 {[%emt 0:01:54]} 24. Nb5 {[%emt 0:04:16]} Bc6 {[%emt 0:06:17]} 25. Qd1 {[%emt 0:02:13]} Qg5 {[%emt 0:08:40]} 26. Na7 {[%emt 0:09:28]} Ba8 {[%emt 0:03:00]} 27. Nb5 {[%emt 0:02:39]} Rd7 {[%emt 0:02:33]} 28. Qe2 {[%emt 0:00:21]} Rfd8 {[%emt 0:03:57]} 29. Red1 {[%emt 0:00:16]} Bc6 {[%emt 0:00:06]} 30. Nd4 {[%emt 0:00:07]} Bb7 {[%emt 0:00:05]} 31. Nc2 {[%emt 0:02:24]} Bh6 {[%emt 0:00:42]} 32. Ne3 {[%emt 0:01:31]} Qg6 {[%emt 0:00:02]} 33. Nhxg4 {[%emt 0:03:13]} Nxg4 {[%emt 0:01:17]} 34. Qxg4 {[%emt 0:04:26]} Qxg4 {[%emt 0:00:11]} 35. Nxg4 {[%emt 0:00:04]} Bxd2 {[%emt 0:00:13]} 36. Nf6+ {[%emt 0:00:03]} Kg7 {[%emt 0:00:43]} 37. Nxd7 {[%emt 0:00:06]} Bb4 {[%emt 0:09:25]} 38. Ne5 {[%emt 0:00:14]} Kf8 {[%emt 0:00:14]} 39. Nd3 {[%emt 0:02:25]} Bc3 {[%emt 0:00:03]} 40. f4 {[%emt 0:05:54]} Ke7 {[%emt 0:03:38]} 41. Bf3 {[%emt 0:34:08]} e5 {[%emt 0:33:51]} 42. Kg2 {[%emt 0:15:20]} Rh8 {[%emt 0:00:00]} 43. f5 {[%emt 0:00:00]} Rh7 {[%emt 0:00:00]} 44. Nc1 {[%emt 0:00:00]} Bd4 {[%emt 0:00:00]} 45. Ne2 {[%emt 0:00:00]} Bc5 {[%emt 0:00:00]} 46. Nc1 {[%emt 0:00:00]} Bd4 {[%emt 0:00:00]} 47. Re1 {[%emt 0:00:00]} Bc3 {[%emt 0:00:00]} 48. Re2 {[%emt 0:00:00]} Bd4 {[%emt 0:00:00]} 49. Na2 {[%emt 0:00:00]} Bc6 {[%emt 0:00:00]} 50. Re1 {[%emt 0:00:00]} Bb7 {[%emt 0:00:00]} 51. Bd1 {[%emt 0:00:00]} Bc5 {[%emt 0:00:00]} 52. Bc2 {[%emt 0:00:00]} Rh5 {[%emt 0:00:00]} 53. Rf1 {[%emt 0:00:00]} Kf6 {[%emt 0:00:00]} 54. Nc3 {[%emt 0:00:00]} Bc6 {[%emt 0:00:00]} 55. Bd3 {[%emt 0:00:00]} Bd4 {[%emt 0:00:00]} 56. Nb1 {[%emt 0:00:00]} Bc5 {[%emt 0:00:00]} 57. Nd2 {[%emt 0:00:00]} Rg5 {[%emt 0:00:00]} 58. Nf3 {[%emt 0:00:00]} Rg4 {[%emt 0:00:00]} 59. Re1 {[%emt 0:00:00]} Ke7 {[%emt 0:00:00]} 60. Bc2 {[%emt 0:00:00]} Bb4 {[%emt 0:00:00]} 61. Re2 {[%emt 0:00:00]} Bc5 {[%emt 0:00:00]} 62. Nh4 {[%emt 0:00:50]} Rg8 {[%emt 0:00:00]} 63. Kf3 {[%emt 0:00:08]} Rh8 {[%emt 0:00:00]} 64. Rh2 {[%emt 0:01:06]} Kf6 {[%emt 0:00:00]} 65. Re2 {[%emt 0:03:33]} Rh7 {[%emt 0:00:00]} 66. Kg2 {[%emt 0:00:25]} Ke7 {[%emt 0:00:00]} 67. Nf3 {[%emt 0:00:12]} Rg7 {[%emt 0:00:00]} 68. Re1 {[%emt 0:00:22]} Rg8 {[%emt 0:00:00]} 69. Nh2 {[%emt 0:02:31]} Rg5 {[%emt 0:00:27]} 70. g4 {[%emt 0:01:03]} Rg8 {[%emt 0:00:26]} 71. Kg3 {[%emt 0:00:15]} Bb4 {[%emt 0:02:45]} 72. Re2 {[%emt 0:01:26]} Ba3 {[%emt 0:00:01]} 73. Re1 {[%emt 0:00:04]} Bb4 {[%emt 0:00:02]} 74. Rh1 {[%emt 0:02:06]} Rh8 {[%emt 0:02:31]} 75. Rd1 {[%emt 0:00:04]} f6 {[%emt 0:00:17]} 76. Nf3 {[%emt 0:01:30]} Bc5 {[%emt 0:00:01]} 77. Nh4 {[%emt 0:00:53]} Be8 {[%emt 0:00:17]} 78. Ng2 {[%emt 0:00:09]} Bc6 {[%emt 0:00:23]} 79. Re1 {[%emt 0:02:55]} Bb4 {[%emt 0:01:54]} 80. Rd1 {[%emt 0:00:30]} Bc5 {[%emt 0:00:01]} 81. Nh4 {[%emt 0:00:34]} Be8 {[%emt 0:00:28]} 82. Rh1 {[%emt 0:00:00]} Kd7 {[%emt 0:00:13]} 83. Kf3 {[%emt 0:00:00]} Bf7 {[%emt 0:00:09]} 84. Ke2 {[%emt 0:00:00]} Rg8 {[%emt 0:00:07]} 85. Kf3 {[%emt 0:00:00]} Rh8 {[%emt 0:00:02]} 86. Bd1 {[%emt 0:00:00]} Ba3 {[%emt 0:00:49]} 87. Be2 {[%emt 0:00:13]} Bc5 {[%emt 0:00:02]} 88. Bf1 {[%emt 0:02:09]} Kd8 {[%emt 0:00:02]} 89. Bg2 {[%emt 0:00:48]} Ke8 {[%emt 0:00:42]} 90. Ke2 {[%emt 0:00:14]} Ba3 {[%emt 0:00:02]} 91. Nf3 {[%emt 0:00:55]} Rxh1 {[%emt 0:00:04]} 92. Bxh1 {[%emt 0:00:03]} Bc1 {[%emt 0:00:04]} 93. Kd3 {[%emt 0:00:17]} Ke7 {[%emt 0:00:29]} 94. Bg2 {[%emt 0:00:21]} Be8 {[%emt 0:00:33]} 95. Bf1 {[%emt 0:00:09]} Bc6 {[%emt 0:00:02]} 96. Be2 {[%emt 0:00:05]} Be8 {[%emt 0:01:11]} 97. Bd1 {[%emt 0:00:10]} Bc6 {[%emt 0:00:02]} 98. Bc2 {[%emt 0:00:08]} Kd7 {[%emt 0:00:02]} 99. Kc3 {[%emt 0:00:15]} Be3 {[%emt 0:00:04]} 100. Kd3 {[%emt 0:02:31]} Bf4 {[%emt 0:00:06]} 101. Kc3 {[%emt 0:00:00]} Be3 {[%emt 0:00:03]} 102. b4 {[%emt 0:00:18]} axb4+ {[%emt 0:00:21]} 103. Kxb4 {[%emt 0:00:04]} Bc5+ {[%emt 0:00:03]} 104. Kc3 {[%emt 0:00:05]} Be3 {[%emt 0:00:03]} 105. Kd3 {[%emt 0:00:53]} Bf4 {[%emt 0:00:07]} 106. Ke2 {[%emt 0:00:32]} Kc7 {[%emt 0:02:49]} 107. Ne1 {[%emt 0:00:35]} Bg5 {[%emt 0:00:08]} 108. Kf3 {[%emt 0:01:18]} Be8 {[%emt 0:00:12]} 109. Nd3 {[%emt 0:00:14]} Bf7 {[%emt 0:00:07]} 110. Bb3 {[%emt 0:00:05]} Bh4 {[%emt 0:01:29]} 111. Ke2 {[%emt 0:00:18]} Kc6 {[%emt 0:00:15]} 112. Kd2 {[%emt 0:00:19]} Kb7 {[%emt 0:00:45]} 113. Nb4 {[%emt 0:00:46]} Be8 {[%emt 0:00:06]} 114. Kd3 {[%emt 0:00:41]} Bc6 {[%emt 0:00:03]} 115. Nc2 {[%emt 0:00:34]} Bg5 {[%emt 0:00:40]} 116. Nb4 {[%emt 0:05:39]} Kc7 {[%emt 0:00:54]} 117. Na2 {[%emt 0:00:09]} Kd8 {[%emt 0:02:44]} 118. Nc3 {[%emt 0:00:11]} Kc7 {[%emt 0:00:08]} 119. Ba2 {[%emt 0:00:41]} Bh4 {[%emt 0:00:37]} 120. Bb3 {[%emt 0:00:14]} Bg5 {[%emt 0:00:04]} 121. Ne2 {[%emt 0:00:06]} Kd7 {[%emt 0:00:20]} 122. Ng1 {[%emt 0:00:19]} Ke7 {[%emt 0:00:16]} 123. Nf3 {[%emt 0:00:07]} Bc1 {[%emt 0:00:04]} 124. Bc2 {[%emt 0:00:05]} Kd8 {[%emt 0:00:26]} 125. Kc3 {[%emt 0:00:36]} Be3 {[%emt 0:00:04]} 126. Ne1 {[%emt 0:01:54]} Bg5 {[%emt 0:00:15]} 127. Ng2 {[%emt 0:00:46]} Kc7 {[%emt 0:00:14]} 128. Kd3 {[%emt 0:00:13]} Kb7 {[%emt 0:00:25]} 129. Ne1 {[%emt 0:00:35]} Kc7 {[%emt 0:00:44]} 130. Bb3 {[%emt 0:00:13]} Kd8 {[%emt 0:00:11]} 131. Nf3 {[%emt 0:00:45]} Bh6 {[%emt 0:00:15]} 132. Bc2 {[%emt 0:01:34]} Ke7 {[%emt 0:00:23]} 133. Ke2 {[%emt 0:00:11]} Bf4 {[%emt 0:00:07]} 134. Kf2 {[%emt 0:00:07]} Kf7 {[%emt 0:00:47]} 135. Ng1 {[%emt 0:01:23]} Bd2 {[%emt 0:00:19]} 136. Kf3 {[%emt 0:00:44]} Ke7 {[%emt 0:00:13]} 137. Bb3 {[%emt 0:00:07]} Bf4 {[%emt 0:00:15]} 138. Nh3 {[%emt 0:00:24]} Bd2 {[%emt 0:00:03]} 139. Bc2 {[%emt 0:00:32]} Be8 {[%emt 0:00:14]} 140. Ke2 {[%emt 0:00:20]} Bc1 {[%emt 0:00:05]} 141. Ng1 {[%emt 0:00:04]} Bc6 {[%emt 0:00:09]} 142. Nf3 {[%emt 0:00:02]} Bf4 {[%emt 0:00:04]} 143. Kd3 {[%emt 0:00:04]} Kd8 {[%emt 0:00:08]} 144. Nd2 {[%emt 0:00:05]} Kc7 {[%emt 0:00:14]} 145. Nb1 {[%emt 0:00:07]} Kd8 {[%emt 0:00:10]} 146. Nc3 {[%emt 0:00:03]} Bg5 {[%emt 0:00:10]} 147. Bb3 {[%emt 0:00:07]} Kc7 {[%emt 0:00:06]} 148. Nb5+ {[%emt 0:00:40]} Bxb5 {[%emt 0:00:32]} 149. cxb5 {[%emt 0:00:04]} Bh4 {[%emt 0:00:06]} 150. Kc4 {[%emt 0:00:02]} Bg5 {[%emt 0:00:05]} 151. Kd5 {[%emt 0:00:02]} Bh4 {[%emt 0:00:06]} 1/2-1/2

[Event "45th FIDE Olympiad 2024"]
[Site "Budapest"]
[Date "2024.09.19"]
[Round "8.39"]
[White "Sonis, Francesco"]
[Black "Mamedov, Rauf"]
[Result "1/2-1/2"]
[ECO "E54"]
[WhiteElo "2554"]
[BlackElo "2637"]
[Annotator "TA"]
[PlyCount "93"]
[EventDate "2024.09.05"]
[EventType "team-tourn"]
[EventCountry "HUN"]
[SourceTitle "playchess.com"]
[Source "ChessBase"]
[SourceQuality "1"]
[WhiteTeam "Italy"]
[BlackTeam "Azerbaijan"]
[WhiteTeamCountry "ITA"]
[BlackTeamCountry "AZE"]
[TimeControl "40/5400+30:1800+30"]

{[%evp 19,93,9,13,0,16,-25,-15,0,-7,-40,-36,-32,-36,-48,-50,-60,-56,-57,-54,-73,-44,-48,-61,-51,-25,-51,-24,-75,-69,-82,-19,-14,-10,0,0,0,4,0,21,10,35,0,20,0,46,12,56,58,62,62,71,32,38,0,4,4,35,41,52,47,39,0,0,0,36,35,49,18,30,0,0,0,8,0,0,0]} 1. d4 {[%emt 0:00:02]} d5 {[%emt 0:00:12]} 2. c4 {[%emt 0:00:10]} dxc4 {[%emt 0:00:03]} 3. e3 {[%emt 0:00:45]} Nf6 {[%emt 0:00:41]} 4. Bxc4 {[%emt 0:00:05]} e6 {[%emt 0:00:03]} 5. Nf3 {[%emt 0:00:17]} c5 {[%emt 0:00:06]} 6. O-O {[%emt 0:00:47]} a6 {[%emt 0:00:02]} 7. Bd3 {[%emt 0:05:10]} Nc6 {[%emt 0:05:07]} 8. Nc3 {[%emt 0:02:26]} Be7 {[%emt 0:01:56]} 9. Ne4 {[%emt 0:08:24]} cxd4 {[%emt 0:10:37]} 10. exd4 {[%emt 0:00:52]} O-O {[%emt 0:00:29]} 11. Be3 {[%emt 0:08:52]} Nd5 {[%emt 0:16:57]} 12. Bc1 {[%emt 0:09:45]} b6 {[%emt 0:08:20]} 13. a3 {[%emt 0:00:09]} Bb7 {[%emt 0:04:15]} 14. Bc2 {[%emt 0:03:28]} Rc8 {[%emt 0:05:50]} 15. Qd3 {[%emt 0:10:39][%cal Oe4d6]} g6 {[%emt 0:05:39]} 16. Bd2 {[%emt 0:00:33] Prevents Ndb4.} Nf6 {[%emt 0:04:39][%cal Oc6d4] [#] ...Nxd4! would now be deadly.} 17. Nc3 {[%emt 0:02:09]} Re8 {[%emt 0:04:47]} 18. Rad1 {[%emt 0:00:28]} b5 {[%emt 0:02:25]} 19. Bg5 {[%emt 0:08:17]} Na5 {[%emt 0:02:41]} (19... Nd5 {simplifies} 20. Bxe7 Ncxe7 21. Ne4 Nf5) 20. Ne5 {[%emt 0:01:44]} Nd7 {[%emt 0:01:42]} 21. Bxe7 {[%emt 0:03:44]} Qxe7 {[%emt 0:00:45]} 22. Qe2 {[%emt 0:05:06]} Nf6 {[%emt 0:06:27]} 23. Nd3 {[%emt 0:07:48]} (23. Bb1 $11) 23... Nc6 $17 {[%emt 0:03:37]} 24. Qe3 {[%emt 0:01:30]} Ba8 {[%emt 0:02:26]} (24... Red8 $17 25. Nc5 Rxd4) 25. Bb3 $11 {[%emt 0:01:54]} Na5 {[%emt 0:03:16]} 26. Ba2 {[%emt 0:00:50]} Nc4 {[%emt 0:00:14]} 27. Bxc4 {[%emt 0:04:04]} bxc4 {[%emt 0:00:14]} 28. Ne5 {[%emt 0:01:08]} Qb7 {[%emt 0:00:40][%csl Ga8][%cal Rb7g2] [#]} 29. f3 $1 {[%emt 0:02:45] Active counter play!} Qe7 {[%emt 0:02:51]} 30. Ne4 {[%emt 0:01:48]} Nd5 {[%emt 0:00:48]} 31. Qc1 {[%emt 0:00:01]} Red8 {[%emt 0:04:09]} (31... Nb6 $1 $11 {was preferrable.}) 32. Nc5 {[%emt 0:02:07]} Nb6 {[%emt 0:00:59]} 33. Nxc4 {[%emt 0:01:47]} Nxc4 {[%emt 0:00:52]} 34. Qxc4 {[%emt 0:00:04]} a5 {[%emt 0:00:03]} 35. Rfe1 {[%emt 0:01:19]} Rd5 {[%emt 0:01:43]} 36. b4 {[%emt 0:02:30]} axb4 {[%emt 0:00:05]} 37. axb4 {[%emt 0:00:03]} Qh4 {[%emt 0:00:37] Threatens to win with ...Rh5.} 38. Re4 {[%emt 0:00:37]} Qd8 {[%emt 0:00:27]} 39. Qc3 {[%emt 0:01:13]} Rb8 {[%emt 0:01:26]} 40. Na6 {[%emt 0:00:57]} Rb6 {[%emt 0:00:39]} 41. Nc5 {[%emt 0:33:00]} Rh5 {[%emt 0:03:15]} 42. Re2 {[%emt 0:00:00]} Rd5 {[%emt 0:11:44]} 43. Rdd2 {[%emt 0:00:00]} Rbd6 {[%emt 0:00:36][%cal Rd5d4]} 44. Ne4 {[%emt 0:00:00]} Rc6 {[%emt 0:00:10] The position is equal.} 45. Nc5 {[%emt 0:00:00]} Rcd6 $1 {[%emt 0:00:01]} 46. Ne4 {[%emt 0:00:00]} Rc6 {[%emt 0:00:05]} 47. Nc5 {[%emt 0:00:00] Weighted Error Value: White=0.12 (very precise) /Black=0.13 (very precise) .  Mistake:       	White=1     	Black=2      Inaccurate:     	White=9     	Black=6      OK:         	White=12    	Black=12     Strong:       	White=1     	Black=1} 1/2-1/2

[Event "45th FIDE Olympiad 2024"]
[Site "Budapest"]
[Date "2024.09.19"]
[Round "8.39"]
[White "David, Leroy Debblay"]
[Black "Amewounou, Komlan Kouessan"]
[Result "0-1"]
[WhiteElo "1904"]
[BlackElo "1825"]
[PlyCount "112"]
[EventDate "2024.09.05"]
[EventType "team-tourn"]
[EventCountry "HUN"]
[WhiteTeam "Liberia"]
[BlackTeam "Togo"]
[WhiteTeamCountry "LBR"]
[BlackTeamCountry "TOG"]
[TimeControl "40/5400+30:1800+30"]

1. d4 e5 2. dxe5 d6 3. Nf3 Bg4 4. e3 Nc6 5. Be2 Qd7 6. O-O O-O-O 7. Qd5 h5 8. Bb5 Nge7 9. Bxc6 Nxc6 10. Nbd2 dxe5 11. Qxd7+ Rxd7 12. h3 Bxf3 13. Nxf3 f6 14. c3 g5 15. Kh2 g4 16. Nh4 e4 17. Nf5 Ne5 18. a4 gxh3 19. Kxh3 Rg8 20. a5 Rg5 21. Nh4 Ng6 22. Nxg6 Rxg6 23. Ra4 f5 24. Rd4 Rdg7 25. Rd5 Rxg2 26. Rxf5 Bd6 27. Rh1 Rg1 28. Rxg1 Rxg1 29. Bd2 Rh1+ 30. Kg2 Rd1 31. Rd5 Kd7 32. b4 Ke6 33. c4 c6 34. Rd4 Ke5 35. Bc3 Rxd4 36. exd4+ Ke6 37. Kh3 Be7 38. Kg3 Bg5 39. Be1 Kf5 40. Bc3 a6 41. Kh3 e3 42. fxe3 Bxe3 43. d5 cxd5 44. cxd5 Bf4 45. Kh4 Ke4 46. b5 axb5 47. Kxh5 Kxd5 48. Kg4 Bc7 49. Kf3 Kc4 50. Bf6 Kd3 51. Kf2 Bxa5 52. Bg5 Bc3 53. Kf3 b4 54. Be7 b3 55. Ba3 b2 56. Bxb2 Bxb2 {0-} 0-1

[Event "45th FIDE Olympiad 2024"]
[Site "Budapest"]
[Date "2024.09.19"]
[Round "8.40"]
[White "Mamedyarov, Shakhriyar"]
[Black "Brunello, Sabino"]
[Result "1/2-1/2"]
[ECO "A14"]
[WhiteElo "2733"]
[BlackElo "2511"]
[Annotator "TA"]
[PlyCount "98"]
[EventDate "2024.09.05"]
[EventType "team-tourn"]
[EventCountry "HUN"]
[SourceTitle "playchess.com"]
[Source "ChessBase"]
[SourceQuality "1"]
[WhiteTeam "Azerbaijan"]
[BlackTeam "Italy"]
[WhiteTeamCountry "AZE"]
[BlackTeamCountry "ITA"]
[TimeControl "40/5400+30:1800+30"]

{[%evp 11,98,4,7,0,0,0,25,21,9,9,5,8,4,19,11,21,24,14,28,16,18,22,41,33,43,35,31,24,48,0,11,0,-10,-12,-7,-68,0,0,7,17,9,10,6,6,10,11,13,7,7,11,19,19,19,18,18,18,18,15,15,6,15,15,15,15,15,12,34,22,34,20,18,15,15,16,25,25,25,25,25,25,25,5,5,5,5,5,5,5,5]} 1. c4 {[%emt 0:00:03]} e6 {[%emt 0:00:23]} 2. g3 {[%emt 0:00:18]} d5 {[%emt 0:00:37]} 3. Bg2 {[%emt 0:00:09]} Nf6 {[%emt 0:01:43]} 4. Nf3 {[%emt 0:00:15]} Be7 {[%emt 0:00:13]} 5. O-O {[%emt 0:00:09]} O-O {[%emt 0:00:03]} 6. d3 {[%emt 0:00:17][%cal Bd2d3,Bd3e4,Be4e5][%mdl 32]} c5 {[%emt 0:04:24]} 7. Ne5 {[%emt 0:00:10]} Nbd7 {[%emt 0:01:46]} 8. Nxd7 {[%emt 0:00:56]} Qxd7 {[%emt 0:22:18]} 9. e4 {[%emt 0:03:07] White has an edge.} b6 {[%emt 0:00:08]} 10. f4 {[%emt 0:12:14]} dxe4 {[%emt 0:00:30]} 11. dxe4 {[%emt 0:02:25] [#] e5 would now be deadly.} Ba6 {[%emt 0:00:13]} 12. e5 {[%emt 0:13:36][%csl LRa8,LRf6]} Rad8 {[%emt 0:00:33]} 13. Qxd7 {[%emt 0:08:20]} Nxd7 {[%emt 0:02:04]} 14. b3 {[%emt 0:00:10]} b5 {[%emt 0:16:43]} 15. cxb5 $1 {[%emt 0:02:08]} Bxb5 {[%emt 0:00:02]} 16. Re1 {[%emt 0:00:19]} Nb6 {[%emt 0:01:26]} 17. Nc3 {[%emt 0:01:42]} Bd3 {[%emt 0:00:48]} 18. Ba3 {[%emt 0:00:37]} Rd7 {[%emt 0:00:16]} 19. Red1 {[%emt 0:05:24]} Rc8 {[%emt 0:05:50]} 20. Kf2 {[%emt 0:15:56]} (20. Ne4 $14) 20... f6 {[%emt 0:11:22]} (20... c4 $5 21. Bxe7 cxb3 22. axb3 Rxc3 $17) 21. Bh3 {[%emt 0:05:14]} Kf7 {[%emt 0:00:36]} 22. Re1 {[%emt 0:05:01] [#] Black must now prevent exf6.} f5 {[%emt 0:11:43]} 23. Rac1 {[%emt 0:06:51]} (23. Bf1 $11) 23... a5 {[%emt 0:11:28]} (23... g5 $15 24. Ne2 Be4) 24. Red1 $11 {[%emt 0:02:21]} c4 {[%emt 0:00:46]} 25. Bxe7 {[%emt 0:01:30]} Kxe7 {[%emt 0:00:52]} 26. Ke3 {[%emt 0:02:01]} Rcd8 {[%emt 0:02:52]} 27. Bg2 {[%emt 0:02:18]} cxb3 {[%emt 0:00:22]} 28. axb3 {[%emt 0:00:06]} Ba6 {[%emt 0:00:08]} 29. Rxd7+ {[%emt 0:02:40]} Rxd7 {[%emt 0:00:10]} 30. Rd1 {[%emt 0:00:36]} Rxd1 {[%emt 0:00:44]} 31. Nxd1 {[%emt 0:00:06][%mdl 4096] Endgame. KBN-KBN} a4 {[%emt 0:00:11]} 32. bxa4 {[%emt 0:00:05]} Nxa4 {[%emt 0:00:06]} 33. Kd4 {[%emt 0:00:08]} Nb6 {[%emt 0:02:39]} 34. Bc6 {[%emt 0:00:35]} Nc4 {[%emt 0:00:57]} 35. Bb7 {[%emt 0:01:29]} Bb5 {[%emt 0:01:38]} 36. Nc3 {[%emt 0:07:47]} Na5 {[%emt 0:01:21]} 37. Bd5 {[%emt 0:00:10]} Be8 {[%emt 0:00:31]} 38. Ba2 {[%emt 0:00:02]} Nb7 {[%emt 0:00:25]} 39. Kc4 {[%emt 0:00:09]} h6 {[%emt 0:00:06]} 40. Kb4 {[%emt 0:00:12]} g5 {[%emt 0:00:06]} 41. Ne2 {[%emt 0:30:44]} Nd8 {[%emt 0:05:46]} 42. Kc5 {[%emt 0:00:00]} Nf7 {[%emt 0:07:29]} 43. Nd4 {[%emt 0:00:00]} Bd7 {[%emt 0:00:43]} 44. Nf3 {[%emt 0:00:00]} gxf4 {[%emt 0:00:41]} 45. gxf4 {[%emt 0:00:00]} Nh8 {[%emt 0:00:10]} 46. Nh4 {[%emt 0:00:00] Prevents Ng6} Be8 {[%emt 0:01:19] The position is equal.} 47. Bb3 {[%emt 0:00:00]} Bh5 {[%emt 0:00:33]} 48. Kd4 {[%emt 0:00:00]} Ng6 {[%emt 0:00:34]} 49. Nxg6+ {[%emt 0:00:00]} Bxg6 {[%emt 0:00:02] Weighted Error Value: White=0.06 (flawless) /Black=0.05 (flawless) .  Mistake:       	White=2     	Black=1      OK:         	White=18    	Black=22     Best:        	---       	Black=2      Strong:       	White=1     	---} 1/2-1/2

[Event "45th FIDE Olympiad 2024"]
[Site "Budapest"]
[Date "2024.09.19"]
[Round "8.40"]
[White "Fumey, Enyonam Sewa"]
[Black "Arnold, Smith"]
[Result "0-1"]
[WhiteElo "1845"]
[BlackElo "1915"]
[PlyCount "48"]
[EventDate "2024.09.05"]
[EventType "team-tourn"]
[EventCountry "HUN"]
[WhiteTeam "Togo"]
[BlackTeam "Liberia"]
[WhiteTeamCountry "TOG"]
[BlackTeamCountry "LBR"]
[TimeControl "40/5400+30:1800+30"]

1. e4 e5 2. f4 d5 3. exd5 exf4 4. Nf3 Nf6 5. c4 c6 6. d4 Bb4+ 7. Bd2 Bxd2+ 8. Qxd2 O-O 9. Nc3 cxd5 10. Be2 Nc6 11. O-O dxc4 12. Bxc4 Bg4 13. Ne2 Qb6 14. a3 Rad8 15. Rad1 Bxf3 16. Rxf3 Ne5 17. Rb3 Nxc4 18. Rxb6 Nxd2 19. Rxb7 Nc4 20. Nxf4 Rb8 21. Rxa7 Rxb2 22. d5 Ne3 23. Rd3 Nfg4 24. Rb7 Rxb7 {0-} 0-1

[Event "45th FIDE Olympiad 2024"]
[Site "Budapest"]
[Date "2024.09.19"]
[Round "8.41"]
[White "Anton Guijarro, David"]
[Black "Bjerre, Jonas Buhl"]
[Result "0-1"]
[ECO "E07"]
[WhiteElo "2665"]
[BlackElo "2648"]
[Annotator "TA"]
[PlyCount "80"]
[EventDate "2024.09.05"]
[EventType "team-tourn"]
[EventCountry "HUN"]
[SourceTitle "playchess.com"]
[Source "ChessBase"]
[SourceQuality "1"]
[WhiteTeam "Spain"]
[BlackTeam "Denmark"]
[WhiteTeamCountry "ESP"]
[BlackTeamCountry "DEN"]
[TimeControl "40/5400+30:1800+30"]

{[%evp 15,80,22,19,20,19,22,18,13,10,-12,8,-14,0,-8,-2,-3,8,7,0,6,4,0,0,0,6,-6,0,-10,0,0,0,-41,-41,-45,-35,-38,-42,-53,-44,-95,-83,-84,-73,-81,-101,-105,-76,-125,-98,-187,-180,-160,-160,-172,-189,-227,-206,-213,-199,-253,-206,-248,-248,-719,-705,-1641,-1623]} 1. c4 {[%emt 0:00:06]} Nf6 {[%emt 0:00:54]} 2. Nf3 {[%emt 0:00:41]} e6 {[%emt 0:00:52]} 3. g3 {[%emt 0:00:42]} d5 {[%emt 0:01:17]} 4. Bg2 {[%emt 0:00:15]} Be7 {[%emt 0:00:52]} 5. O-O {[%emt 0:00:40]} O-O {[%emt 0:00:08]} 6. d4 {[%emt 0:00:16]} c6 {[%emt 0:00:33]} 7. b3 {[%emt 0:01:45]} b6 {[%emt 0:01:34][%cal Bb7b6,Bb6b5][%mdl 32]} 8. Bb2 {[%emt 0:01:32]} Nbd7 {[%emt 0:00:35]} 9. Re1 {[%emt 0:07:24]} a5 {[%emt 0:03:56]} 10. Nfd2 {[%emt 0:10:00]} b5 {[%emt 0:11:47]} 11. c5 {[%emt 0:02:45] The position is equal.} e5 {[%emt 0:03:13]} 12. a3 {[%emt 0:04:56]} Qc7 {[%emt 0:17:39]} 13. e3 {[%emt 0:08:54]} Re8 {[%emt 0:02:52]} 14. Nc3 {[%emt 0:01:33]} h5 {[%emt 0:06:08][%cal Oh5h4]} 15. b4 {[%emt 0:03:47]} exd4 {[%emt 0:03:01]} 16. exd4 {[%emt 0:02:13]} Nf8 {[%emt 0:00:17]} 17. Nf3 {[%emt 0:14:15]} Bg4 {[%emt 0:01:02]} 18. Qd3 {[%emt 0:02:24]} Bxf3 {[%emt 0:03:36]} 19. Bxf3 {[%emt 0:00:29]} Ne6 {[%emt 0:01:39]} 20. h4 {[%emt 0:08:28]} Bf8 {[%emt 0:02:22]} 21. Re2 {[%emt 0:02:05]} g6 {[%emt 0:02:43]} 22. Rae1 {[%emt 0:00:49]} Bg7 {[%emt 0:04:31]} 23. Kg2 {[%emt 0:05:37]} axb4 {[%emt 0:03:27]} 24. axb4 {[%emt 0:00:03]} Qd7 {[%emt 0:00:23]} 25. Kg1 {[%emt 0:04:43]} Ng4 {[%emt 0:03:10]} 26. Nd1 {[%emt 0:01:22]} Ra4 {[%emt 0:04:24]} 27. Qb3 {[%emt 0:04:35]} (27. Qd2 $15) 27... Rea8 {[%emt 0:05:29]} (27... Nxd4 $2 {loses.} 28. Rxe8+ Kh7 29. Bxd4 Bxd4 30. R1e7 $18) 28. Rd2 {[%emt 0:01:08]} Ra2 {[%emt 0:00:53][%cal Oa8a3] White must now prevent ...R8a3!} 29. Bxg4 {[%emt 0:01:48]} hxg4 {[%emt 0:00:11]} 30. Qc3 {[%emt 0:03:31]} Nc7 {[%emt 0:04:04][%cal Be6c7,Bc7e8,Be8f6,Bf6e4,Be4d2,Bd2f3][%mdl 32] Black has more active pieces.} 31. Ne3 {[%emt 0:01:19]} (31. Qc2 $142) 31... Ne8 $17 {[%emt 0:01:02]} 32. Rdd1 {[%emt 0:03:27]} (32. Bc1 $17) 32... Nf6 $19 {[%emt 0:00:25]} 33. Ra1 {[%emt 0:00:24]} Ne4 {[%emt 0:01:28]} 34. Qb3 {[%emt 0:01:21]} R2a4 {[%emt 0:06:26]} 35. Kg2 {[%emt 0:02:00]} Nd2 {[%emt 0:02:08]} 36. Qd3 {[%emt 0:00:35] [#] Rxa4 would now be deadly.} Nf3 {[%emt 0:00:09][%cal Oa4a1] ...Rxa1! is the strong threat.} 37. Rh1 {[%emt 0:00:19]} (37. Red1 $142) 37... Rxa1 {[%emt 0:00:32]} 38. Bxa1 {[%emt 0:00:03][%cal Oe3g4]} Qe6 {[%emt 0:00:42]} 39. Bc3 $2 {[%emt 0:00:55]} (39. Rd1) 39... Ra3 {[%emt 0:02:01]} 40. Nc2 {[%emt 0:00:43] [#]} Rxc3 $1 {[%emt 0:01:21][%mdl 512] Weighted Error Value: White=0.51/Black=0.04 (flawless) .  Mistake:       	White=5     	---        Inaccurate:     	White=2     	---        OK:         	White=8     	Black=13     Best:        	---       	Black=2} 0-1